fUSD/lending_fUSD_20260501
["ID","MTS","AMOUNT","RATE_DAILY","PERIOD"]
[421417487,1777606245000,-159.96,0.00029232,30]
[421417561,1777606245000,-286.9600583,0.00031702,60]
[421417557,1777606245000,-2333.33333333,0.000316,2]
[421417572,1777606245000,-180.2,0.00032,7]
[421417559,1777606245000,-2333.33333333,0.000316,2]
[421417550,1777606245000,-1899.87444306,0.00031167,2]
[421417566,1777606245000,-162.3498137,0.00032,7]
[421417570,1777606245000,-3756.59996826,0.00032,120]
[421417563,1777606245000,-159.0818048,0.00031702,60]
[421417568,1777606245000,-254.3864617,0.00032,120]
[421417574,1777606245000,-180.2,0.00032,7]
[421417576,1777606245000,-180.2,0.00032,7]
[421417586,1777606245000,-164.0,0.00032141,30]
[421417588,1777606245000,-164.71549911,0.00032141,30]
[421417578,1777606245000,-180.2,0.00032,7]
[421417584,1777606245000,-156.81528226,0.00032141,30]
[421417590,1777606245000,-493.99416106,0.00032212,2]
[421417580,1777606245000,-151.0,0.00032,7]
[421417582,1777606245000,-151.0,0.00032,7]
[421417599,1777606245000,-204.97,0.00032877,26]
[421417593,1777606245000,-216.09,0.000326,14]
[421417596,1777606245000,-216.09,0.000328,15]
[421417601,1777606245000,-3756.59996826,0.00033,120]
[421417603,1777606245000,-37848.48636901,0.00033,3]
[421417605,1777606245000,-5882.67,0.00033,7]
[421417609,1777606245000,-151.0,0.00033,7]
[421417481,1777606245000,-151.0,0.00029232,7]
[421417607,1777606245000,-151.0,0.00033,7]
[421417553,1777606245000,-4540.73477775,0.00031342,82]
[421417555,1777606245000,-2333.33333334,0.000316,2]
[421417611,1777606245000,-357.806648,0.00033,7]
[421417546,1777606245000,-160.0,0.00031141,30]
[421417485,1777606245000,-296.743178,0.00029232,7]
[421417492,1777606245000,-469.96,0.00029343,2]
[421417494,1777606245000,-200.0,0.00029345,2]
[421417496,1777606245000,-469.96,0.00029523,2]
[421417511,1777606245000,-163.0,0.0003013,30]
[421417509,1777606245000,-155.24726235,0.0003,10]
[421417514,1777606245000,-151.0,0.00030136,11]
[421417549,1777606245000,-409.14728573,0.00031167,5]
[421417518,1777606245000,-184.17341489,0.00030136,2]
[421417505,1777606245000,-276.44801131,0.00029956,5]
[421417498,1777606245000,-200.0,0.00029639,2]
[421417503,1777606245000,-152.0,0.00029956,7]
[421417501,1777606245000,-10000.0,0.00029699,2]
[421417516,1777606245000,-200.0,0.00030136,2]
[421417507,1777606245000,-154.0,0.00029962,5]
[421417522,1777606245000,-500.0,0.00030137,120]
[421417532,1777606245000,-161.0,0.0003015,30]
[421417530,1777606245000,-158.25668548,0.00030137,120]
[421417540,1777606245000,-153.0,0.00031141,30]
[421417542,1777606245000,-161.20052416,0.00031141,30]
[421417527,1777606245000,-7153.93207908,0.00030137,120]
[421417534,1777606245000,-200.0,0.00030437,2]
[421417544,1777606245000,-164.0,0.00031141,30]
[421417526,1777606245000,-210.65266209,0.00030137,120]
[421417536,1777606245000,-183.55,0.00030832,2]
[421417525,1777606245000,-3150.0,0.00030137,120]
[421417520,1777606245000,-150.31978903,0.00030136,2]
[421417538,1777606245000,-343.09830406,0.00030961,81]
[421417678,1777606246000,-151.0,0.00036,7]
[421417673,1777606246000,-505.0,0.00035947,11]
[421417683,1777606246000,-164.0,0.00036141,30]
[421417680,1777606246000,-150.0,0.000361,7]
[421417682,1777606246000,-150.0,0.000361,7]
[421417663,1777606246000,-150.0,0.00035286,7]
[421417674,1777606246000,-200.0,0.00036,39]
[421417671,1777606246000,-150.0,0.00035829,7]
[421417662,1777606246000,-150.0,0.0003515,7]
[421417665,1777606246000,-221.0,0.00035452,2]
[421417676,1777606246000,-3756.59996826,0.00036,120]
[421417686,1777606246000,-174.9145157,0.000362,5]
[421417715,1777606246000,-300.0,0.00036954,10]
[421417689,1777606246000,-229.61,0.000363,90]
[421417691,1777606246000,-5882.67,0.000363,7]
[421417693,1777606246000,-150.0,0.00036371,7]
[421417695,1777606246000,-264.37,0.00036493,41]
[421417698,1777606246000,-1009.95216415,0.00036642,7]
[421417707,1777606246000,-150.0,0.00036733,30]
[421417711,1777606246000,-217.94669982,0.00036855,11]
[421417709,1777606246000,-511.81151576,0.00036855,2]
[421417713,1777606246000,-150.0,0.00036914,7]
[421417700,1777606246000,-576.0,0.000367,90]
[421417704,1777606246000,-150.0,0.00036733,7]
[421417705,1777606246000,-150.0,0.00036733,7]
[421417667,1777606246000,-150.0,0.00035467,7]
[421417687,1777606246000,-3619.257,0.00036245,44]
[421417658,1777606246000,-164.0,0.00035141,30]
[421417635,1777606246000,-150.0,0.000342,7]
[421417668,1777606246000,-150.0,0.00035467,7]
[421417702,1777606246000,-864.36,0.000367,90]
[421417613,1777606246000,-357.806648,0.00033,7]
[421417617,1777606246000,-357.806648,0.00033,7]
[421417615,1777606246000,-357.806648,0.00033,7]
[421417619,1777606246000,-164.0,0.00033141,30]
[421417621,1777606246000,-3992.29898643,0.00033329,2]
[421417624,1777606246000,-3756.59996826,0.000339,120]
[421417626,1777606246000,-164.0,0.00034141,30]
[421417629,1777606246000,-165.83437889,0.000342,7]
[421417641,1777606246000,-150.0,0.000342,7]
[421417639,1777606246000,-150.0,0.000342,7]
[421417644,1777606246000,-150.0,0.000342,7]
[421417666,1777606246000,-150.0,0.00035467,30]
[421417646,1777606246000,-374.16,0.00034326,30]
[421417637,1777606246000,-191.52184248,0.000342,7]
[421417633,1777606246000,-150.0,0.000342,7]
[421417631,1777606246000,-150.0,0.000342,7]
[421417648,1777606246000,-2314.58,0.00034326,30]
[421417650,1777606246000,-1899.87444306,0.00034378,2]
[421417654,1777606246000,-4500.0,0.00035,120]
[421417652,1777606246000,-150.0,0.00034743,7]
[421417656,1777606246000,-3756.59996826,0.00035,120]
[421417664,1777606246000,-5882.67,0.000353,7]
[421417660,1777606246000,-150.0,0.0003515,7]
[421417670,1777606246000,-348.77,0.000358,2]
[421417669,1777606246000,-276.72329409,0.00035616,7]
[421417628,1777606246000,-150.0,0.000342,30]
[421417717,1777606246000,-300.0,0.00036954,10]
[421417672,1777606246000,-10000.0,0.000359,2]
[421417721,1777606246000,-151.0,0.00036955,7]
[421417793,1777606246000,-163.5,0.00038,120]
[421417781,1777606246000,-151.50400445,0.00038,7]
[421417784,1777606246000,-153.27210869,0.00038,7]
[421417791,1777606246000,-206.95502573,0.00038,30]
[421417783,1777606246000,-154.43918266,0.00038,7]
[421417795,1777606246000,-219.16,0.00038057,2]
[421417797,1777606246000,-271.71619356,0.000381,33]
[421417798,1777606246000,-433.54703849,0.00038108,10]
[421417800,1777606246000,-151.0,0.00038125,30]
[421417811,1777606246000,-2599.0,0.0003855,11]
[421417813,1777606246000,-621.02,0.00038558,2]
[421417815,1777606246000,-900.0,0.00038616,5]
[421417779,1777606246000,-152.47464645,0.00038,7]
[421417819,1777606246000,-5000.0,0.000388,120]
[421417809,1777606246000,-532.65520775,0.00038513,2]
[421417817,1777606246000,-161.0,0.0003878,120]
[421417807,1777606246000,-500.0,0.00038356,120]
[421417805,1777606246000,-500.0,0.00038356,120]
[421417821,1777606246000,-1006.5,0.000388,60]
[421417824,1777606246000,-557242.77510638,0.0003884,2]
[421417823,1777606246000,-384655.68596197,0.0003882,2]
[421417828,1777606246000,-707.48499536,0.0003884,2]
[421417843,1777606246000,-6320.54004513,0.0003884,2]
[421417841,1777606246000,-722.8955016,0.0003884,2]
[421417838,1777606246000,-839.75667677,0.0003884,2]
[421417831,1777606246000,-1178.10511456,0.0003884,2]
[421417803,1777606246000,-3756.59996826,0.000382,120]
[421417786,1777606246000,-293.00115426,0.00038,7]
[421417788,1777606246000,-226.35899999,0.00038,7]
[421417774,1777606246000,-12500.0,0.00038,120]
[421417735,1777606246000,-151.0,0.00036955,7]
[421417737,1777606246000,-151.0,0.00036955,7]
[421417723,1777606246000,-180.2,0.00036955,7]
[421417741,1777606246000,-357.806648,0.00036955,7]
[421417733,1777606246000,-151.0,0.00036955,7]
[421417739,1777606246000,-357.806648,0.00036955,7]
[421417725,1777606246000,-180.2,0.00036955,7]
[421417727,1777606246000,-180.2,0.00036955,7]
[421417776,1777606246000,-154.00479478,0.00038,120]
[421417731,1777606246000,-151.0,0.00036955,7]
[421417729,1777606246000,-180.2,0.00036955,7]
[421417747,1777606246000,-300.0,0.00036973,5]
[421417745,1777606246000,-357.806648,0.00036955,7]
[421417749,1777606246000,-150.0,0.0003705,7]
[421417743,1777606246000,-357.806648,0.00036955,7]
[421417757,1777606246000,-187.41420932,0.000372,120]
[421417751,1777606246000,-150.0,0.0003705,7]
[421417770,1777606246000,-1145.0127,0.000378,120]
[421417766,1777606246000,-3992.29898643,0.00037614,2]
[421417768,1777606246000,-600.0,0.00037795,5]
[421417834,1777606246000,-53061.13326463,0.0003884,2]
[421417772,1777606246000,-250.0,0.00037973,48]
[421417765,1777606246000,-216.09,0.000376,10]
[421417755,1777606246000,-164.0,0.00037141,30]
[421417762,1777606246000,-1899.87444306,0.00037589,2]
[421417759,1777606246000,-150.0,0.00037457,7]
[421417719,1777606246000,-300.0,0.00036954,10]
[421417761,1777606246000,-5882.67,0.000375,7]
[421417753,1777606246000,-3756.59996826,0.000371,120]
[421417925,1777606247000,-494.31698231,0.0003884,2]
[421417923,1777606247000,-383.11429623,0.0003884,2]
[421417916,1777606247000,-329.0,0.00032877,30]
[421417901,1777606247000,-342.40185028,0.0001176,2]
[421417921,1777606247000,-286.21295462,0.0003884,2]
[421417907,1777606247000,-469.96,0.00029703,2]
[421417909,1777606247000,-69.09104303,0.00032877,30]
[421417905,1777606247000,-342.40185028,0.00024249,2]
[421417903,1777606247000,-795.96980852,0.00021533,2]
[421417914,1777606247000,-86.01735697,0.00032877,30]
[421417912,1777606247000,-322.8916,0.00032877,30]
[421417918,1777606247000,-2779.00602046,0.0003884,2]
[421418213,1777606784000,500.0,0.00029452,120]
[421418216,1777606973000,184.23,0.0002884,120]
[421418217,1777607028000,155.0,0.00030137,120]
[421418220,1777607364000,-217.93015517,0.00010204,2]
[421418219,1777607364000,-1233.68289629,0.00010204,2]
[421418239,1777607432000,-1200.0,0.00011223,2]
[421418241,1777607432000,-300.0,0.00011224,2]
[421418236,1777607432000,-150.0,0.00011223,2]
[421418235,1777607432000,-300.0,0.00011222,2]
[421418234,1777607432000,-175.58,0.00011203,2]
[421418233,1777607432000,-150.0,0.0001102,2]
[421418240,1777607432000,-204.55793425,0.00011224,2]
[421418231,1777607432000,-209.28798728,0.00010859,2]
[421418232,1777607432000,-223.06,0.00010959,2]
[421418229,1777607432000,-50.06984483,0.00010204,2]
[421418230,1777607432000,-359.7863,0.00010607,2]
[421418238,1777607432000,-300.0,0.00011223,2]
[421418242,1777607432000,-5000.0,0.00011224,2]
[421418237,1777607432000,-300.0,0.00011223,2]
[421418245,1777607432000,-250.0,0.00011224,2]
[421418256,1777607432000,-83.26746198,0.00011452,2]
[421418250,1777607432000,-3466.078,0.000114,2]
[421418257,1777607432000,-295.44619717,0.00011452,2]
[421418253,1777607432000,-421.29364626,0.00011452,2]
[421418255,1777607432000,-416.73253802,0.00011452,2]
[421418251,1777607432000,-161.318,0.000114,2]
[421418252,1777607432000,-500.0,0.00011452,2]
[421418254,1777607432000,-500.0,0.00011452,2]
[421418249,1777607432000,-745.446721,0.000114,2]
[421418247,1777607432000,-250.0,0.00011224,2]
[421418243,1777607432000,-5000.0,0.00011224,2]
[421418248,1777607432000,-4104.4475214,0.00011391,2]
[421418244,1777607432000,-262.07736574,0.00011224,2]
[421418246,1777607432000,-250.0,0.00011224,2]
[421418266,1777607433000,-500.0,0.00011452,2]
[421418263,1777607433000,-500.0,0.00011452,2]
[421418262,1777607433000,-500.0,0.00011452,2]
[421418264,1777607433000,-500.0,0.00011452,2]
[421418265,1777607433000,-500.0,0.00011452,2]
[421418267,1777607433000,-500.0,0.00011452,2]
[421418260,1777607433000,-411.57680281,0.00011452,2]
[421418258,1777607433000,-204.55380283,0.00011452,2]
[421418259,1777607433000,-88.42319719,0.00011452,2]
[421418268,1777607433000,-500.0,0.00011452,2]
[421418261,1777607433000,-500.0,0.00011452,2]
[421418269,1777607433000,-428.00219952,0.00011452,2]
[421418276,1777607433000,-500.0,0.00011452,2]
[421418280,1777607433000,-133423.95658357,0.00011453,2]
[421418279,1777607433000,-500.0,0.00011452,2]
[421418282,1777607433000,-638.34053726,0.00011453,2]
[421418281,1777607433000,-7260.0041525,0.00011453,2]
[421418274,1777607433000,-500.0,0.00011452,2]
[421418271,1777607433000,-500.0,0.00011452,2]
[421418275,1777607433000,-500.0,0.00011452,2]
[421418270,1777607433000,-500.0,0.00011452,2]
[421418277,1777607433000,-500.0,0.00011452,2]
[421418272,1777607433000,-500.0,0.00011452,2]
[421418278,1777607433000,-500.0,0.00011452,2]
[421418273,1777607433000,-500.0,0.00011452,2]
[421418292,1777607438000,-49208.11776348,0.00011453,2]
[421418296,1777607438000,-597.34621392,0.00011453,2]
[421418294,1777607438000,-326.30160042,0.00011453,2]
[421418293,1777607438000,-22637.82891913,0.00011453,2]
[421418291,1777607438000,-714.88294723,0.00011453,2]
[421418286,1777607438000,-1109.46875634,0.00011453,2]
[421418288,1777607438000,-1650.96166913,0.00011453,2]
[421418287,1777607438000,-290.84887371,0.00011453,2]
[421418285,1777607438000,-1733.31250443,0.00011453,2]
[421418289,1777607438000,-1836.55755591,0.00011453,2]
[421418290,1777607438000,-1234.15262126,0.00011453,2]
[421418297,1777607438000,-7301.41972174,0.00011453,2]
[421418295,1777607438000,-302.97385118,0.00011453,2]
[421418303,1777607438000,-500.0,0.00011552,2]
[421418310,1777607438000,-166.93056934,0.00011552,2]
[421418309,1777607438000,-558.43503316,0.00011552,2]
[421418304,1777607438000,-500.0,0.00011552,2]
[421418306,1777607438000,-500.0,0.00011552,2]
[421418308,1777607438000,-500.0,0.00011552,2]
[421418298,1777607438000,-7286.35972879,0.00011453,2]
[421418301,1777607438000,-500.0,0.00011552,2]
[421418307,1777607438000,-500.0,0.00011552,2]
[421418299,1777607438000,-1624.03,0.00011491,2]
[421418305,1777607438000,-500.0,0.00011552,2]
[421418300,1777607438000,-209.28798728,0.00011507,2]
[421418302,1777607438000,-219.44957485,0.00011552,2]
[421418311,1777607439000,-457.40599453,0.00011552,2]
[421418313,1777607439000,-287.04564859,0.00011552,2]
[421418312,1777607439000,-500.0,0.00011552,2]
[421418340,1777607441000,-500.0,0.00011873,2]
[421418343,1777607441000,-378.80966537,0.00011873,2]
[421418342,1777607441000,-500.7364306,0.00011873,2]
[421418355,1777607441000,-420.0,0.00012329,2]
[421418356,1777607441000,-420.0,0.0001233,2]
[421418345,1777607441000,-500.0,0.00011873,2]
[421418346,1777607441000,-500.0,0.00011873,2]
[421418351,1777607441000,-500.32017467,0.00011873,2]
[421418348,1777607441000,-500.17125465,0.00011873,2]
[421418354,1777607441000,-255.0,0.00012278,2]
[421418350,1777607441000,-500.0,0.00011873,2]
[421418353,1777607441000,-748.61,0.000121,2]
[421418352,1777607441000,-1624.03,0.00012065,2]
[421418336,1777607441000,-500.0,0.00011873,2]
[421418358,1777607441000,-1624.03,0.00012352,2]
[421418347,1777607441000,-501.1315987,0.00011873,2]
[421418349,1777607441000,-351.50145438,0.00011873,2]
[421418331,1777607441000,-748.61,0.00011826,2]
[421418337,1777607441000,-531.41078814,0.00011873,2]
[421418322,1777607441000,-269.52261934,0.00011552,2]
[421418321,1777607441000,-212.95435141,0.00011552,2]
[421418323,1777607441000,-500.0,0.00011552,2]
[421418327,1777607441000,-501.46755329,0.00011573,2]
[421418325,1777607441000,-748.61,0.00011552,2]
[421418324,1777607441000,-545.07866995,0.00011552,2]
[421418326,1777607441000,-559849.9968,0.00011553,2]
[421418339,1777607441000,-210.21475071,0.00011873,2]
[421418328,1777607441000,-9706.33885103,0.00011678,2]
[421418330,1777607441000,-3905.2618,0.0001179,2]
[421418332,1777607441000,-250.0,0.00011873,2]
[421418357,1777607441000,-1680.0,0.00012346,2]
[421418341,1777607441000,-500.0,0.00011873,2]
[421418335,1777607441000,-172.07140763,0.00011873,2]
[421418333,1777607441000,-500.0,0.00011873,2]
[421418334,1777607441000,-501.21025496,0.00011873,2]
[421418329,1777607441000,-1624.03,0.00011778,2]
[421418360,1777607441000,-748.61,0.00012374,2]
[421418338,1777607441000,-209.21006642,0.00011873,2]
[421418370,1777607441000,-162.38278084,0.00012917,2]
[421418383,1777607441000,-200.0,0.00013699,2]
[421418380,1777607441000,-560.45,0.00013698,2]
[421418384,1777607441000,-225.0,0.00013699,2]
[421418386,1777607441000,-150.0,0.00013775,2]
[421418397,1777607441000,-937.206,0.00014486,2]
[421418396,1777607441000,-1220.0,0.00014486,2]
[421418387,1777607441000,-150.0,0.00013775,2]
[421418382,1777607441000,-560.45,0.00013698,2]
[421418388,1777607441000,-577.51349827,0.000138,2]
[421418389,1777607441000,-265.6801109,0.000138,2]
[421418392,1777607441000,-1354.49,0.00014486,2]
[421418390,1777607441000,-175.58,0.00014003,2]
[421418395,1777607441000,-278.541,0.00014486,2]
[421418394,1777607441000,-632.658,0.00014486,2]
[421418393,1777607441000,-1051.957,0.00014486,2]
[421418359,1777607441000,-500.0,0.00012374,2]
[421418391,1777607441000,-164.346,0.00014486,2]
[421418379,1777607441000,-560.45,0.00013698,2]
[421418385,1777607441000,-36428.84042259,0.00013764,2]
[421418378,1777607441000,-250.31297905,0.0001364,2]
[421418361,1777607441000,-501.58087282,0.00012421,2]
[421418377,1777607441000,-2351.0,0.0001358,2]
[421418362,1777607441000,-501.82993617,0.00012421,2]
[421418364,1777607441000,-503.05932703,0.00012421,2]
[421418369,1777607441000,-443.32,0.000128,2]
[421418367,1777607441000,-748.61,0.00012648,2]
[421418368,1777607441000,-218.66,0.000128,2]
[421418366,1777607441000,-500.0,0.00012648,2]
[421418363,1777607441000,-503.99967683,0.00012421,2]
[421418371,1777607441000,-500.0,0.00012922,2]
[421418376,1777607441000,-587.0,0.00013547,2]
[421418372,1777607441000,-748.64983029,0.00012922,2]
[421418373,1777607441000,-502.62790938,0.00013196,2]
[421418375,1777607441000,-431.0,0.00013545,2]
[421418374,1777607441000,-433.0,0.00013434,2]
[421418365,1777607441000,-1624.03,0.0001264,2]
[421418381,1777607441000,-560.45,0.00013698,2]
[421418429,1777607442000,-175.58,0.00016804,2]
[421418430,1777607442000,-1350.0,0.00017486,2]
[421418432,1777607442000,-449.342,0.00017486,2]
[421418431,1777607442000,-1049.0,0.00017486,2]
[421418425,1777607442000,-403.584712,0.00016116,2]
[421418433,1777607442000,-928.0,0.00017486,2]
[421418428,1777607442000,-3003.0,0.00016432,2]
[421418435,1777607442000,-4104.44752136,0.00017926,2]
[421418423,1777607442000,-403.584712,0.00016116,2]
[421418427,1777607442000,-602.0,0.00016351,2]
[421418437,1777607442000,-2738.27,0.00018856,2]
[421418441,1777607442000,-411.0,0.00020229,7]
[421418436,1777607442000,-9706.33885103,0.0001815,2]
[421418438,1777607442000,-648.35,0.00018856,2]
[421418445,1777607442000,-6037.0,0.00020486,2]
[421418440,1777607442000,-808.0,0.00020229,7]
[421418439,1777607442000,-295.55,0.00018856,2]
[421418446,1777607442000,-299.03676011,0.00020702,2]
[421418444,1777607442000,-928.0,0.00020486,2]
[421418442,1777607442000,-598.0,0.00020229,7]
[421418443,1777607442000,-1350.0,0.00020486,2]
[421418448,1777607442000,-10959.15,0.00020951,2]
[421418426,1777607442000,-403.584712,0.00016116,2]
[421418447,1777607442000,-1582.43,0.00020951,2]
[421418434,1777607442000,-6037.0,0.00017486,2]
[421418407,1777607442000,-299.99,0.0001531,2]
[421418422,1777607442000,-151.0,0.00016116,2]
[421418460,1777607442000,-258.22380249,0.00022488,2]
[421418399,1777607442000,-4104.44752136,0.00014659,2]
[421418398,1777607442000,-6037.0,0.00014486,2]
[421418409,1777607442000,-9999.99,0.0001531,2]
[421418402,1777607442000,-9706.33885103,0.00014914,2]
[421418400,1777607442000,-736.0,0.00014691,2]
[421418401,1777607442000,-823.0,0.00014883,2]
[421418406,1777607442000,-9999.99,0.0001531,2]
[421418403,1777607442000,-3292.0,0.00014938,2]
[421418405,1777607442000,-15431.16,0.0001531,2]
[421418408,1777607442000,-224551.67,0.0001531,2]
[421418424,1777607442000,-403.584712,0.00016116,2]
[421418404,1777607442000,-6636.0,0.0001531,2]
[421418411,1777607442000,-558.0,0.00016072,2]
[421418412,1777607442000,-151.0,0.00016116,2]
[421418414,1777607442000,-182.28,0.00016116,2]
[421418413,1777607442000,-182.28,0.00016116,2]
[421418415,1777607442000,-182.28,0.00016116,2]
[421418419,1777607442000,-406.544906,0.00016116,2]
[421418417,1777607442000,-406.544906,0.00016116,2]
[421418420,1777607442000,-406.544906,0.00016116,2]
[421418421,1777607442000,-151.0,0.00016116,2]
[421418416,1777607442000,-182.28,0.00016116,2]
[421418418,1777607442000,-406.544906,0.00016116,2]
[421418410,1777607442000,-355.58610813,0.00015775,2]
[421418450,1777607442000,-4104.44752136,0.00021194,2]
[421418474,1777607442000,-150.0,0.00022635,4]
[421418449,1777607442000,-633.83,0.00021141,2]
[421418483,1777607442000,-150.0,0.00022782,4]
[421418479,1777607442000,-150.0,0.00022696,4]
[421418482,1777607442000,-150.0,0.00022758,4]
[421418484,1777607442000,-150.0,0.00022792,4]
[421418486,1777607442000,-150.0,0.00022825,4]
[421418494,1777607442000,-150.0,0.00022987,4]
[421418487,1777607442000,-150.0,0.00022859,4]
[421418485,1777607442000,-150.0,0.00022821,4]
[421418491,1777607442000,-150.0,0.00022927,4]
[421418492,1777607442000,-150.0,0.00022929,4]
[421418496,1777607442000,-150.0,0.00022994,4]
[421418490,1777607442000,-150.0,0.00022904,4]
[421418488,1777607442000,-150.0,0.00022872,4]
[421418493,1777607442000,-150.0,0.0002296,4]
[421418489,1777607442000,-150.0,0.00022893,4]
[421418497,1777607442000,-150.0,0.00023028,4]
[421418506,1777607442000,-150.0,0.00023197,4]
[421418508,1777607442000,-150.0,0.00023231,4]
[421418507,1777607442000,-150.0,0.00023223,4]
[421418498,1777607442000,-150.0,0.00023062,4]
[421418499,1777607442000,-150.0,0.00023064,4]
[421418500,1777607442000,-150.0,0.00023076,4]
[421418461,1777607442000,-150.1512965,0.00022488,2]
[421418481,1777607442000,-150.0,0.00022738,4]
[421418480,1777607442000,-150.0,0.00022724,4]
[421418495,1777607442000,-150.0,0.00022987,4]
[421418476,1777607442000,-150.0,0.00022656,4]
[421418478,1777607442000,-150.0,0.0002269,4]
[421418452,1777607442000,-5000.0,0.00021918,2]
[421418451,1777607442000,-9706.33885103,0.00021385,2]
[421418453,1777607442000,-150.0,0.00022488,4]
[421418454,1777607442000,-150.0,0.00022488,2]
[421418457,1777607442000,-150.0,0.00022488,2]
[421418456,1777607442000,-152.63196873,0.00022488,2]
[421418455,1777607442000,-150.0,0.00022488,2]
[421418458,1777607442000,-150.0,0.00022488,2]
[421418463,1777607442000,-150.0,0.00022488,2]
[421418467,1777607442000,-2360.58,0.00022562,2]
[421418464,1777607442000,-150.0,0.00022488,2]
[421418459,1777607442000,-150.0,0.00022488,2]
[421418465,1777607442000,-150.0,0.00022521,4]
[421418473,1777607442000,-150.0,0.00022623,4]
[421418477,1777607442000,-150.0,0.0002268,4]
[421418475,1777607442000,-150.0,0.00022654,4]
[421418505,1777607442000,-150.0,0.00023163,4]
[421418472,1777607442000,-150.0,0.00022589,4]
[421418469,1777607442000,-285.61,0.00022562,2]
[421418466,1777607442000,-150.0,0.00022555,4]
[421418468,1777607442000,-558.92,0.00022562,2]
[421418470,1777607442000,-1364.17,0.00022562,2]
[421418462,1777607442000,-150.0,0.00022488,2]
[421418471,1777607442000,-9447.54,0.00022562,2]
[421418564,1777607443000,-150.0,0.00024153,4]
[421418561,1777607443000,-150.0,0.00024108,4]
[421418562,1777607443000,-150.0,0.00024142,4]
[421418560,1777607443000,-150.0,0.00024104,4]
[421418557,1777607443000,-150.0,0.00024025,4]
[421418555,1777607443000,-150.0,0.00023987,7]
[421418553,1777607443000,-150.0,0.00023973,4]
[421418554,1777607443000,-150.0,0.00023987,4]
[421418552,1777607443000,-150.0,0.00023957,4]
[421418556,1777607443000,-150.0,0.00024007,4]
[421418568,1777607443000,-150.0,0.0002421,4]
[421418558,1777607443000,-150.0,0.00024041,4]
[421418576,1777607443000,-150.0,0.00024277,4]
[421418585,1777607443000,-150.0,0.00024412,4]
[421418563,1777607443000,-150.0,0.00024153,4]
[421418574,1777607443000,-150.0,0.00024243,4]
[421418575,1777607443000,-150.0,0.00024251,4]
[421418573,1777607443000,-150.0,0.00024237,7]
[421418566,1777607443000,-150.0,0.00024176,4]
[421418582,1777607443000,-150.0,0.00024398,4]
[421418580,1777607443000,-150.0,0.00024362,4]
[421418579,1777607443000,-150.0,0.00024345,4]
[421418577,1777607443000,-150.0,0.00024311,4]
[421418581,1777607443000,-150.0,0.00024379,4]
[421418586,1777607443000,-150.0,0.00024446,4]
[421418584,1777607443000,-150.0,0.0002441,4]
[421418548,1777607443000,-150.0,0.00023906,4]
[421418571,1777607443000,-150.0,0.00024217,4]
[421418550,1777607443000,-150.0,0.00023945,4]
[421418533,1777607443000,-150.0,0.00023654,4]
[421418549,1777607443000,-150.0,0.0002394,4]
[421418520,1777607443000,-150.0,0.00023449,4]
[421418522,1777607443000,-1557.855,0.00023486,2]
[421418532,1777607443000,-150.0,0.00023641,4]
[421418587,1777607443000,-4104.44752136,0.00024462,2]
[421418521,1777607443000,-150.0,0.00023467,4]
[421418534,1777607443000,-150.0,0.00023663,4]
[421418523,1777607443000,-150.0,0.00023487,4]